bitfinex-derivatives/quotes_BTCF0:USTF0_20250910
["timestamp","ask_amount","ask_price","bid_price","bid_amount"]
[1757531734750,1.47614562,113390.0,113380.0,0.0100028]
[1757531735147,1.52354989,113390.0,113380.0,0.0100028]
[1757531735550,1.52354989,113390.0,113380.0,0.0321028]
[1757531736249,1.52318989,113390.0,113380.0,0.0321028]
[1757531736643,0.70158989,113390.0,113380.0,0.0321028]
[1757531736947,1.47550562,113390.0,113380.0,0.0321028]
[1757531737550,1.3578262,113390.0,113380.0,0.0321028]
[1757531737742,0.5365062,113390.0,113380.0,0.0321028]
[1757531737942,1.3581862,113390.0,113380.0,0.0321028]
[1757531738142,1.47586562,113390.0,113380.0,0.0321028]
[1757531738848,1.52326989,113390.0,113380.0,0.0321028]
[1757531739338,1.47586562,113390.0,113380.0,0.0321028]
[1757531740045,1.47586562,113390.0,113380.0,0.41360222]
[1757531740046,0.46623105,113390.0,113380.0,0.41360222]
[1757531740240,0.5365062,113390.0,113380.0,0.2959228]
[1757531740442,1.3459262,113390.0,113380.0,0.2959228]
[1757531741242,0.5228062,113390.0,113380.0,0.2959228]
[1757531741545,1.22804678,113390.0,113380.0,0.2959228]
[1757531742143,0.04432678,113390.0,113380.0,0.77440222]
[1757531742351,0.02286678,113390.0,113380.0,0.77440222]
[1757531742851,0.1620062,113390.0,113380.0,0.6567228]
[1757531743356,0.02286678,113390.0,113380.0,0.6567228]
[1757531743555,0.1405462,113390.0,113380.0,0.6567228]
[1757531743749,0.02286678,113390.0,113380.0,0.6567228]
[1757531744149,0.1405462,113390.0,113380.0,0.6567228]
[1757531744348,0.1620062,113390.0,113380.0,0.6567228]
[1757531744651,0.1405462,113390.0,113380.0,0.6567228]
[1757531745546,0.1620062,113390.0,113380.0,0.6567228]
[1757531746552,0.04432678,113390.0,113380.0,0.6567228]
[1757531746751,0.04432678,113390.0,113380.0,0.2959228]
[1757531747052,0.04432678,113390.0,113380.0,0.6567228]
[1757531747053,0.1620062,113390.0,113380.0,0.6567228]
[1757531748247,0.04432678,113390.0,113380.0,0.6567228]
[1757531748555,0.1620062,113390.0,113380.0,0.6567228]
[1757531750751,0.1757062,113390.0,113380.0,0.4067228]
[1757531751357,0.1757062,113390.0,113380.0,0.47853754]
[1757531751550,0.05802678,113390.0,113380.0,0.47853754]
[1757531751750,0.1757062,113390.0,113380.0,0.47853754]
[1757531752152,0.05802678,113390.0,113380.0,0.47853754]
[1757531752349,0.1757062,113390.0,113380.0,0.47853754]
[1757531752550,0.1620062,113390.0,113380.0,0.47853754]
[1757531752851,0.02286678,113390.0,113380.0,0.47853754]
[1757531753049,0.1405462,113390.0,113380.0,0.47853754]
[1757531753245,0.02286678,113390.0,113380.0,1.05207788]
[1757531753454,0.001,113390.0,113380.0,0.93439846]
[1757531753959,0.001,113390.0,113380.0,1.05207788]
[1757531754260,0.001,113390.0,113380.0,0.93439846]
[1757531754657,0.11767942,113410.0,113400.0,0.02231]
[1757531754851,0.04301994,113410.0,113400.0,0.02231]
[1757531755152,0.16069936,113410.0,113400.0,0.02231]
[1757531755560,0.17365936,113410.0,113400.0,0.02231]
[1757531756061,0.17865936,113410.0,113400.0,0.02331]
[1757531756359,0.17865936,113410.0,113400.0,0.03196]
[1757531757153,0.14465936,113410.0,113400.0,0.14963942]
[1757531757358,0.14465936,113410.0,113400.0,0.03196]
[1757531757555,0.16569936,113410.0,113400.0,0.03196]
[1757531758452,0.17865936,113410.0,113400.0,0.03196]
[1757531761763,0.06097994,113410.0,113400.0,0.03196]
[1757531762059,0.17865936,113410.0,113400.0,0.03196]
[1757531762365,0.42177994,113410.0,113400.0,0.03196]
[1757531762666,0.90713878,113410.0,113400.0,0.00965]
[1757531762963,1.73177878,113410.0,113400.0,0.00965]
[1757531763766,0.90713878,113410.0,113400.0,0.00965]
[1757531763974,1.73169878,113410.0,113400.0,0.00965]
[1757531764165,1.73157878,113410.0,113400.0,0.03196]
[1757531764365,1.73157878,113410.0,113400.0,0.00965]
[1757531767370,1.73113878,113410.0,113400.0,0.00965]
[1757531768372,1.49545994,113410.0,113400.0,0.03196]
[1757531768568,1.73081878,113410.0,113400.0,0.03196]
[1757531769367,0.90713878,113410.0,113400.0,0.03196]
[1757531769667,1.73081878,113410.0,113400.0,0.03196]
[1757531770369,1.84845162,113410.0,113400.0,0.03196]
[1757531771276,1.84845162,113410.0,113400.0,0.00965]
[1757531771970,1.84845162,113410.0,113400.0,0.03196]
[1757531772171,1.84845162,113410.0,113400.0,0.00965]
[1757531772365,1.84845162,113410.0,113400.0,0.03196]
[1757531772871,1.02477162,113410.0,113400.0,0.03196]
[1757531773376,1.84817162,113410.0,113400.0,0.03196]
[1757531774872,1.84817162,113410.0,113400.0,0.00965]
[1757531776374,1.84817162,113410.0,113400.0,0.03196]
[1757531777079,1.84817162,113410.0,113400.0,0.00965]
[1757531777375,1.84817162,113410.0,113400.0,0.03196]
[1757531779788,1.02477162,113410.0,113400.0,0.03196]
[1757531779968,1.84725162,113410.0,113400.0,0.03196]
[1757531782178,1.84725162,113410.0,113400.0,0.03292]
[1757531791088,0.67177994,113410.0,113400.0,0.03292]
[1757531791285,1.84505162,113410.0,113400.0,0.03292]
[1757531791491,1.49205994,113410.0,113400.0,0.03292]
[1757531791696,1.84505162,113410.0,113400.0,0.00965]
[1757531792200,1.89245589,113410.0,113400.0,0.00965]
[1757531793197,1.81895173,113410.0,113400.0,0.00965]
[1757531793400,1.77154746,113410.0,113400.0,0.00965]
[1757531793700,1.81895173,113410.0,113400.0,0.00965]
[1757531799006,1.77154746,113410.0,113400.0,0.00965]
[1757531799216,0.77477162,113410.0,113400.0,0.00965]
[1757531799504,1.59473162,113410.0,113400.0,0.00965]
[1757531800806,1.64213589,113410.0,113400.0,0.00965]
[1757531801198,1.59473162,113410.0,113400.0,0.00965]
[1757531802106,1.77122746,113410.0,113400.0,0.00965]
[1757531803804,1.81863173,113410.0,113400.0,0.00965]
[1757531804206,0.03418,113390.0,113380.0,0.01806666]
[1757531804399,1.94983162,113390.0,113380.0,0.01806666]
[1757531804997,1.13075162,113390.0,113380.0,0.01806666]
[1757531805199,1.95007162,113390.0,113380.0,0.01806666]
[1757531805405,1.95913366,113390.0,113380.0,0.01806666]
[1757531805611,1.96013366,113390.0,113380.0,0.01906666]
[1757531806107,1.96013366,113390.0,113380.0,0.0013528]
[1757531807609,1.95969366,113390.0,113380.0,0.0013528]
[1757531807805,1.95953366,113390.0,113380.0,0.0013528]
[1757531809613,1.95949366,113390.0,113380.0,0.0246228]
[1757531809812,1.95917366,113390.0,113380.0,0.0246228]
[1757531810614,1.95917366,113390.0,113380.0,0.0013528]
[1757531810816,1.95916838,113390.0,113380.0,0.0013528]
[1757531811709,0.03502,113380.0,113370.0,0.00035283]
[1757531811908,0.77078634,113380.0,113370.0,0.00035283]
[1757531812409,0.94728218,113380.0,113370.0,0.00035283]
[1757531812809,1.76560218,113380.0,113370.0,0.00035283]
[1757531813207,1.76568218,113380.0,113370.0,0.00035283]
[1757531813417,0.94728218,113380.0,113370.0,0.00035283]
[1757531813610,1.76556218,113380.0,113370.0,0.00035283]
[1757531813815,1.76656218,113380.0,113370.0,0.00135283]
[1757531815303,0.94828218,113380.0,113370.0,0.00135283]
[1757531815508,1.83802165,113380.0,113370.0,0.00135283]
[1757531815708,0.49057413,113380.0,113370.0,0.02250283]
[1757531816019,1.22906634,113380.0,113370.0,0.27250283]
[1757531816308,0.41098634,113380.0,113370.0,0.27250283]
[1757531816614,1.22922634,113380.0,113370.0,0.27250283]
[1757531817207,0.41098634,113380.0,113370.0,0.27250283]
[1757531817410,1.21537634,113380.0,113370.0,0.45570867]
[1757531817616,1.21537634,113380.0,113370.0,0.27921283]
[1757531817808,1.22914634,113380.0,113370.0,0.27250283]
[1757531818212,0.41095045,113380.0,113370.0,0.27250283]
[1757531818412,1.22891045,113380.0,113370.0,0.27250283]
[1757531819212,0.05795877,113380.0,113370.0,0.27250283]
[1757531819510,0.19943461,113380.0,113370.0,0.45570867]
[1757531819713,0.19943461,113380.0,113370.0,0.81650867]
[1757531819919,0.22068461,113380.0,113370.0,0.81650867]
[1757531820224,0.22068461,113380.0,113370.0,0.64001283]
[1757531820516,0.41095045,113380.0,113370.0,0.63330283]
[1757531822610,0.41095045,113380.0,113370.0,0.64001283]
[1757531823012,0.41095045,113380.0,113370.0,0.63330283]
[1757531823318,0.41095045,113380.0,113370.0,0.44899867]
[1757531823721,0.41095045,113380.0,113370.0,0.27250283]
[1757531824415,0.02293877,113380.0,113370.0,0.81650867]
[1757531824716,1.501,113380.0,113370.0,0.81650867]
[1757531825419,1.67749584,113380.0,113370.0,0.81650867]
[1757531826421,1.501,113380.0,113370.0,0.81650867]
[1757531826718,1.67749584,113380.0,113370.0,0.81650867]
[1757531826930,1.69874584,113380.0,113370.0,0.64001283]
[1757531827222,1.88901168,113380.0,113370.0,0.80979867]
[1757531827413,1.71251584,113380.0,113370.0,0.80979867]
[1757531827915,1.69874584,113380.0,113370.0,0.81650867]
[1757531828514,1.69874584,113380.0,113370.0,0.56650867]
[1757531828717,1.88901168,113380.0,113370.0,0.55979867]
[1757531829020,1.88901168,113380.0,113370.0,0.02250283]
[1757531829624,1.91096391,113380.0,113370.0,0.02250283]
[1757531830124,2.37801223,113380.0,113370.0,0.02250283]
[1757531830328,2.73100391,113380.0,113370.0,0.02250283]
[1757531830621,2.70905168,113380.0,113370.0,0.02250283]
[1757531830828,1.91096698,113380.0,113370.0,0.02250283]
[1757531831126,2.73100698,113380.0,113370.0,0.02250283]
[1757531831326,2.3780153,113380.0,113370.0,0.02250283]
[1757531831527,2.73100698,113380.0,113370.0,0.02250283]
[1757531832231,1.91096698,113380.0,113370.0,0.02250283]
[1757531832431,1.67567011,113380.0,113370.0,0.02250283]
[1757531832728,1.79336492,113380.0,113370.0,0.02250283]
[1757531833230,2.49647011,113380.0,113370.0,0.02250283]
[1757531834028,2.3787753,113380.0,113370.0,0.02250283]
[1757531834329,2.61416492,113380.0,113370.0,0.02250283]
[1757531835326,1.79336492,113380.0,113370.0,0.02250283]
[1757531835530,2.61376492,113380.0,113370.0,0.02250283]
[1757531836234,1.79336492,113380.0,113370.0,0.02250283]
[1757531836424,2.61376492,113380.0,113370.0,0.38330283]
[1757531837130,1.79336492,113380.0,113370.0,0.38330283]
[1757531837332,1.5579753,113380.0,113370.0,0.38330283]
[1757531837528,1.67567011,113380.0,113370.0,0.38330283]
[1757531840741,1.5579753,113380.0,113370.0,0.38330283]
[1757531840931,1.5229553,113380.0,113370.0,0.84589674]
[1757531841135,1.5229553,113380.0,113370.0,1.66585674]
[1757531841136,0.001,113380.0,113370.0,1.66585674]
[1757531841736,0.001,113380.0,113370.0,1.78355155]
[1757531841940,0.001,113380.0,113370.0,1.66585674]
[1757531843939,0.11869481,113380.0,113370.0,1.57730764]
[1757531844241,0.001,113380.0,113370.0,1.57730764]
[1757531844440,0.001,113380.0,113370.0,1.66549674]
[1757531846941,0.001,113380.0,113370.0,1.81170193]
[1757531847142,0.001,113380.0,113370.0,1.92939674]
[1757531849643,0.02433,113380.0,113370.0,0.50770764]
[1757531849837,0.15521481,113380.0,113370.0,0.50099764]
[1757531850032,0.15521481,113380.0,113370.0,1.31975764]
[1757531850744,0.03752,113380.0,113370.0,1.31975764]
[1757531851137,0.02433,113380.0,113370.0,1.32646764]
[1757531851546,0.001,113380.0,113370.0,1.32646764]
[1757531851747,0.001,113380.0,113370.0,1.41465684]
[1757531852644,0.001,113380.0,113370.0,1.29696203]
[1757531852847,0.001,113380.0,113370.0,1.41465684]
[1757531854240,1.501,113380.0,113370.0,1.41465684]
[1757531855139,1.501,113380.0,113370.0,1.29696203]
[1757531855339,1.501,113380.0,113370.0,1.41465684]
[1757531858944,1.501,113380.0,113370.0,1.78235165]
[1757531859150,0.03411625,113400.0,113380.0,0.0881792]
[1757531859341,0.03411625,113400.0,113390.0,1.29613481]
[1757531859538,0.03411625,113400.0,113390.0,1.38431011]
[1757531859741,0.03411625,113400.0,113390.0,1.29613481]
[1757531859943,0.15421481,113400.0,113390.0,0.3608]
[1757531860449,0.15421481,113400.0,113390.0,1.17836]
[1757531861042,0.15421481,113400.0,113390.0,1.29605481]
[1757531861240,0.15721481,113400.0,113390.0,0.3618]
[1757531861444,0.15721481,113400.0,113390.0,1.1816]
[1757531861745,0.03952,113400.0,113390.0,1.1816]
[1757531861945,0.15921481,113400.0,113390.0,1.1816]
[1757531862450,0.15921481,113400.0,113390.0,1.29929481]
[1757531863250,0.15921481,113400.0,113390.0,1.1816]
[1757531864955,0.15921481,113400.0,113390.0,1.29889481]
[1757531865452,0.15921481,113400.0,113390.0,1.1812]
[1757531865657,0.01819,113400.0,113390.0,1.1812]
[1757531865855,0.01819,113400.0,113390.0,1.29889481]
[1757531866944,0.04152,113400.0,113390.0,0.3618]
[1757531867150,0.15921481,113400.0,113390.0,1.18076]
[1757531867349,0.27690962,113400.0,113390.0,0.82032]
[1757531867546,0.54886747,113400.0,113390.0,0.001]
[1757531869450,0.90966747,113400.0,113390.0,0.001]
[1757531869650,0.01319,113380.0,113370.0,0.36115283]
[1757531869850,0.27190962,113380.0,113370.0,0.79207283]
[1757531870051,0.29386747,113380.0,113370.0,0.79207283]
[1757531870251,0.17617266,113380.0,113370.0,0.79207283]
[1757531870461,0.05847785,113380.0,113370.0,0.36975283]
[1757531870653,0.05847785,113380.0,113370.0,0.00895283]
[1757531870654,0.29386747,113380.0,113370.0,0.00895283]
[1757531870953,0.29486747,113380.0,113370.0,0.00995283]
[1757531874448,0.54486747,113380.0,113370.0,0.00995283]
[1757531874955,0.30947785,113380.0,113370.0,0.00995283]
[1757531875152,0.54486747,113380.0,113370.0,0.00995283]
[1757531876355,0.90566747,113380.0,113370.0,0.00995283]
[1757531878758,1.72786747,113380.0,113370.0,0.00995283]
[1757531878962,0.90566747,113380.0,113370.0,0.00995283]
[1757531879356,1.50135092,113380.0,113370.0,0.00995283]
[1757531879555,1.73674054,113380.0,113370.0,0.00995283]
[1757531879752,0.67919092,113380.0,113370.0,0.00995283]
[1757531879952,1.73666054,113380.0,113370.0,0.00995283]
[1757531890078,0.91458054,113380.0,113370.0,0.00995283]
[1757531890272,1.50095092,113380.0,113370.0,0.00995283]
[1757531890471,1.73634054,113380.0,113370.0,0.00995283]
[1757531891378,1.50059092,113380.0,113370.0,0.00995283]
[1757531891578,1.73598054,113380.0,113370.0,0.00995283]
[1757531893179,1.60367535,113380.0,113370.0,0.00995283]
[1757531894279,1.48598054,113380.0,113370.0,0.00995283]
[1757531894478,1.78040952,113380.0,113370.0,0.00995283]
[1757531894676,0.95900952,113380.0,113370.0,0.00995283]
[1757531894877,1.78092952,113380.0,113370.0,0.00995283]
[1757531895081,1.78052952,113380.0,113370.0,0.00995283]
[1757531895771,0.42919092,113380.0,113370.0,0.00995283]
[1757531895976,1.60392332,113380.0,113370.0,0.00995283]
[1757531896370,1.78052952,113380.0,113370.0,0.00995283]
[1757531896771,0.78240332,113380.0,113370.0,0.00995283]
[1757531897374,1.60372332,113380.0,113370.0,0.00995283]
[1757531897574,1.60372332,113380.0,113370.0,0.0096]
[1757531897785,1.78032952,113380.0,113370.0,0.0096]
[1757531898485,1.60448332,113380.0,113370.0,0.0096]
[1757531899186,1.78108952,113380.0,113370.0,0.0096]
[1757531910801,0.03516,113360.0,113350.0,0.06806344]
[1757531911001,1.05468405,113360.0,113350.0,0.06806344]
[1757531911205,1.23129025,113360.0,113350.0,0.06806344]
[1757531911403,1.23129025,113360.0,113350.0,0.07616344]
[1757531912008,1.23117025,113360.0,113350.0,0.07616344]
[1757531912206,1.23217025,113360.0,113350.0,0.08116344]
[1757531912402,0.41133025,113360.0,113350.0,0.25776964]
[1757531913206,0.41133025,113360.0,113350.0,0.08116344]
[1757531913405,0.41133025,113360.0,113350.0,0.25776964]
[1757531913807,0.05811785,113360.0,113350.0,0.25776964]
[1757531914105,0.41133025,113360.0,113350.0,0.25776964]
[1757531915307,0.41133025,113360.0,113350.0,0.08116344]
[1757531915607,0.41133025,113360.0,113350.0,0.25776964]
[1757531916502,0.41133025,113360.0,113350.0,0.08116344]
[1757531917209,1.23101025,113360.0,113350.0,0.08116344]
[1757531919503,0.05811785,113360.0,113350.0,0.25776964]
[1757531919804,0.41133025,113360.0,113350.0,0.25776964]
[1757531921112,0.41133025,113360.0,113350.0,0.08116344]
[1757531921311,0.41133025,113360.0,113350.0,0.25776964]
[1757531922315,0.41133025,113360.0,113350.0,0.08116344]
[1757531922512,0.41133025,113360.0,113350.0,0.25776964]
[1757531924912,0.41133025,113360.0,113350.0,0.08116344]
[1757531925111,0.41133025,113360.0,113350.0,0.25776964]
[1757531927306,0.41133025,113360.0,113350.0,0.08116344]
[1757531927606,0.41133025,113360.0,113350.0,0.25776964]
[1757531928015,0.41133025,113360.0,113350.0,0.61856964]
[1757531928517,0.23472405,113360.0,113350.0,0.86856964]
[1757531928717,0.05809716,113360.0,113350.0,0.86856964]
[1757531928919,0.1910562,113360.0,113350.0,0.86856964]
[1757531929210,0.23470452,113360.0,113350.0,0.86856964]
[1757531929415,0.23470452,113360.0,113350.0,1.68756964]
[1757531930217,0.05809832,113360.0,113350.0,1.68756964]
[1757531930418,0.23470452,113360.0,113350.0,1.68756964]
[1757531930713,0.03616,113360.0,113350.0,1.59917004]
[1757531930910,0.001,113360.0,113350.0,1.95744244]
[1757531931110,0.001,113360.0,113350.0,1.78083624]
[1757531931713,0.001,113360.0,113350.0,1.95744244]
[1757531932721,0.001,113360.0,113350.0,1.95756244]
[1757531933425,0.001,113360.0,113350.0,0.95677624]
[1757531933722,0.001,113360.0,113350.0,1.77585624]
[1757531934325,0.001,113360.0,113350.0,1.59917004]
[1757531934524,0.001,113360.0,113350.0,1.77577624]
[1757531936225,0.001,113360.0,113350.0,0.95677624]
[1757531936417,0.001,113360.0,113350.0,1.77781624]
[1757531937738,0.001,113360.0,113350.0,1.95442244]
[1757531939538,0.001,113360.0,113350.0,1.13338244]
[1757531939839,0.001,113360.0,113350.0,1.95386244]
[1757531940023,0.001,113360.0,113350.0,1.95378244]
[1757531940226,0.001,113360.0,113350.0,1.13338244]
[1757531940424,0.001,113360.0,113350.0,1.95426244]
[1757531941236,0.001,113360.0,113350.0,1.60105004]
[1757531941434,0.001,113360.0,113350.0,1.77765624]
[1757531941636,0.1902662,113360.0,113350.0,1.26284344]
[1757531941831,0.2118562,113360.0,113350.0,0.44196344]
[1757531942030,0.2118562,113360.0,113350.0,1.43920964]
[1757531942236,0.03525,113360.0,113350.0,1.43920964]
[1757531942630,0.01366,113360.0,113350.0,1.43920964]
[1757531942834,0.01366,113360.0,113350.0,1.26260344]
[1757531943023,0.001,113360.0,113350.0,1.52741604]
[1757531943230,0.001,113360.0,113350.0,1.35080984]
[1757531943437,0.001,113360.0,113350.0,1.52741604]
[1757531943638,0.001,113360.0,113350.0,1.43920964]
[1757531944339,0.2118562,113360.0,113350.0,0.44196344]
[1757531944539,0.6384624,113360.0,113350.0,1.26240344]
[1757531944837,0.4618562,113360.0,113350.0,1.43900964]
[1757531947042,0.28525,113360.0,113350.0,1.43900964]
[1757531947442,0.03525,113360.0,113350.0,1.43900964]
[1757531947742,0.01366,113360.0,113350.0,1.43900964]
[1757531949342,0.1902662,113360.0,113350.0,1.43900964]
[1757531950144,0.01366,113360.0,113350.0,1.43900964]
[1757531950743,0.01366,113360.0,113350.0,1.26240344]
[1757531951043,0.01366,113360.0,113350.0,1.43900964]
[1757531952244,0.2118562,113360.0,113350.0,1.43820964]
[1757531952744,0.03525,113360.0,113350.0,1.43820964]
[1757531953043,0.2118562,113360.0,113350.0,1.43820964]
[1757531953446,0.2118562,113360.0,113350.0,0.61856964]
[1757531953646,0.3884624,113360.0,113350.0,1.26116344]
[1757531954042,0.3884624,113360.0,113350.0,1.43776964]
[1757531954244,0.2118562,113360.0,113350.0,1.43776964]
[1757531955640,0.2118562,113360.0,113350.0,0.61856964]
[1757531955838,0.2118562,113360.0,113350.0,1.43772964]
[1757531956344,0.15297942,113360.0,113350.0,1.26112344]
[1757531959045,0.15297942,113360.0,113350.0,1.37885286]
[1757531959348,0.03525,113360.0,113350.0,1.37885286]
[1757531961050,0.01366,113360.0,113350.0,1.37885286]
[1757531961250,0.001,113360.0,113350.0,1.37885286]
[1757531963951,0.001,113360.0,113350.0,1.26112344]
[1757531964152,0.001,113360.0,113350.0,1.37885286]
[1757531965550,0.001,113360.0,113350.0,1.37907286]
[1757531967454,0.001,113360.0,113350.0,0.55991286]
[1757531967648,0.001,113360.0,113350.0,1.37759286]
[1757531970960,0.001,113360.0,113350.0,1.46579836]
[1757531971258,0.001,113360.0,113350.0,1.37807286]
[1757531971652,0.02302245,113360.0,113350.0,1.37807286]
[1757531972662,0.02302245,113360.0,113350.0,1.46627836]
[1757531972863,0.001,113360.0,113350.0,1.46663836]
[1757531973062,0.001,113360.0,113350.0,0.55991286]
[1757531973562,0.001,113360.0,113350.0,1.71671846]
[1757531974361,0.001,113360.0,113350.0,1.59898904]
[1757531974562,0.001,113360.0,113350.0,1.83444788]
[1757531975064,1.5,113370.0,113360.0,0.0987578]
[1757531975265,1.5,113370.0,113360.0,0.69501664]
[1757531976064,1.5,113370.0,113360.0,1.51605664]
[1757531976765,0.01319,113380.0,113360.0,1.51605664]
[1757531976766,0.01319,113380.0,113360.0,1.51705664]
[1757531976969,0.03599,113380.0,113370.0,0.48502942]
[1757531977261,1.55803713,113380.0,113370.0,0.48502942]
[1757531977966,1.55803713,113380.0,113370.0,1.30590942]
[1757531978965,1.53599,113380.0,113370.0,1.30590942]
[1757531979366,1.53699,113380.0,113370.0,1.30690942]
[1757531979861,1.50427554,113380.0,113370.0,1.21116342]
[1757531980161,1.50427554,113380.0,113370.0,1.32889284]
[1757531980466,1.50427554,113380.0,113370.0,1.21116342]
[1757531980667,1.50427554,113380.0,113370.0,1.32911284]
[1757531981065,1.501,113380.0,113370.0,1.32911284]
[1757531982661,1.64152942,113380.0,113370.0,0.50823284]
[1757531982967,2.02190884,113380.0,113370.0,1.1896]
[1757531983167,1.90417942,113380.0,113370.0,0.36852]
[1757531983357,1.90417942,113380.0,113370.0,1.1896]
[1757531983556,1.90417942,113380.0,113370.0,0.36852]
[1757531983766,1.90417942,113380.0,113370.0,1.18956]
[1757531984661,1.78645,113380.0,113370.0,1.18956]
[1757531984864,1.90417942,113380.0,113370.0,1.18956]
[1757531986064,1.78645,113380.0,113370.0,1.18956]
[1757531986369,1.90417942,113380.0,113370.0,1.18956]
[1757531990963,1.90417942,113380.0,113370.0,1.30728942]
[1757531994270,1.7738,113380.0,113370.0,1.32042942]
[1757531999776,1.7738,113380.0,113370.0,1.2027]
[1757531999981,1.78713,113380.0,113370.0,1.30728942]
[1757532000287,1.78713,113380.0,113370.0,1.30564942]
[1757532000467,1.90485942,113380.0,113370.0,1.18772]
[1757532000671,1.90485942,113380.0,113370.0,1.30544942]
[1757532001083,1.90485942,113380.0,113370.0,1.18772]
[1757532001285,1.78713,113380.0,113370.0,1.30548942]
[1757532001480,1.90485942,113380.0,113370.0,1.30548942]
[1757532002583,1.92690916,113380.0,113370.0,1.30548942]
[1757532003183,1.92691541,113380.0,113370.0,1.30548942]
[1757532003481,1.90485942,113380.0,113370.0,1.30548942]
[1757532003884,1.92691443,113380.0,113370.0,1.18808]
[1757532004981,1.92691443,113380.0,113370.0,0.36852]
[1757532005285,1.92691443,113380.0,113370.0,1.18796]
[1757532005583,1.92691443,113380.0,113370.0,1.18788]
[1757532007581,2.04464385,113380.0,113370.0,1.18114]
[1757532007884,2.0652069,113380.0,113370.0,1.18114]
[1757532008276,2.8843669,113380.0,113370.0,0.36202]
[1757532008478,2.8843669,113380.0,113370.0,0.00122]
[1757532008679,3.2451669,113380.0,113370.0,0.00122]
[1757532008982,1.7451669,113380.0,113370.0,0.00122]
[1757532013779,1.86289632,113380.0,113370.0,0.00122]
[1757532015888,0.9260069,113380.0,113370.0,0.00122]
[1757532016190,1.7450469,113380.0,113370.0,0.00122]
[1757532016683,2.03942805,113380.0,113370.0,0.00122]
[1757532018189,0.03637,113360.0,113350.0,0.05]
[1757532018389,1.59202404,113360.0,113350.0,0.05]
[1757532018588,1.61290339,113360.0,113350.0,0.05]
[1757532018893,1.78951672,113360.0,113350.0,0.05]
[1757532019194,1.61290339,113360.0,113350.0,0.05]
[1757532019390,1.61302339,113360.0,113350.0,0.052]
[1757532019589,1.62202675,113360.0,113350.0,0.052]
[1757532020590,1.62302675,113360.0,113350.0,0.055]
[1757532021376,1.62262675,113360.0,113350.0,0.053]
[1757532022186,0.80370675,113360.0,113350.0,0.053]
[1757532022388,0.80470675,113360.0,113350.0,0.051]
[1757532022588,1.62346675,113360.0,113350.0,0.051]
[1757532023189,0.87564527,113360.0,113350.0,0.051]
[1757532023392,0.52241861,113360.0,113350.0,0.051]
[1757532023594,1.69420527,113360.0,113350.0,0.051]
[1757532025187,0.87564527,113360.0,113350.0,0.051]
[1757532025389,1.69420527,113360.0,113350.0,0.07346]
[1757532026088,1.69420527,113360.0,113350.0,0.051]
[1757532029894,1.34097861,113360.0,113350.0,0.051]
[1757532030086,1.69420527,113360.0,113350.0,0.051]
[1757532032190,1.8708186,113360.0,113350.0,0.051]
[1757532036794,1.34097861,113360.0,113350.0,0.051]
[1757532037100,1.8708186,113360.0,113350.0,0.051]
[1757532037798,1.34097861,113360.0,113350.0,0.051]
[1757532037996,1.8708186,113360.0,113350.0,0.051]
[1757532039202,1.8702986,113360.0,113350.0,0.051]
[1757532042392,1.8698586,113360.0,113350.0,0.051]
[1757532043004,1.0522586,113360.0,113350.0,0.051]
[1757532043197,1.8698586,113360.0,113350.0,0.051]
[1757532044704,2.16726287,113360.0,113350.0,0.016]
[1757532044896,0.03474,113340.0,113330.0,0.38245]
[1757532045098,1.22791404,113340.0,113330.0,0.38245]
[1757532045701,0.41039404,113340.0,113330.0,0.38245]
[1757532045895,1.22779404,113340.0,113330.0,0.39639]
[1757532046297,1.22879404,113340.0,113330.0,0.39939]
[1757532046807,0.41139404,113340.0,113330.0,0.40139]
[1757532047105,1.22875404,113340.0,113330.0,0.40139]
[1757532047401,0.41139404,113340.0,113330.0,0.40139]
[1757532047603,0.39922404,113340.0,113330.0,0.40139]
[1757532047905,1.21642404,113340.0,113330.0,0.40139]
[1757532051606,0.39922404,113340.0,113330.0,0.40139]
[1757532052002,1.21642404,113340.0,113330.0,0.40139]
[1757532052510,0.04599738,113340.0,113330.0,0.82800333]
[1757532052709,0.22261071,113340.0,113330.0,0.82800333]
[1757532053100,0.39922404,113340.0,113330.0,0.65139]
[1757532053304,0.39922404,113340.0,113330.0,0.82800333]
[1757532053708,0.39922404,113340.0,113330.0,0.65139]
[1757532053909,0.39922404,113340.0,113330.0,0.82800333]
[1757532054109,0.22261071,113340.0,113330.0,0.65139]
[1757532054310,0.22261071,113340.0,113330.0,0.82800333]
[1757532055107,0.39922404,113340.0,113330.0,0.82800333]
[1757532055812,0.39922404,113340.0,113330.0,0.65139]
[1757532056112,0.39922404,113340.0,113330.0,0.82800333]
[1757532057515,0.39922404,113340.0,113330.0,0.65139]
[1757532057709,0.39922404,113340.0,113330.0,0.82800333]
[1757532060509,0.39922404,113340.0,113330.0,0.65139]
[1757532061011,0.39922404,113340.0,113330.0,0.82800333]
[1757532062116,0.04599738,113340.0,113330.0,0.82800333]
[1757532062415,0.22261071,113340.0,113330.0,0.82800333]
[1757532063016,0.39922404,113340.0,113330.0,0.65139]
[1757532063208,0.39922404,113340.0,113330.0,0.82800333]
[1757532064414,0.04599738,113340.0,113330.0,0.82800333]
[1757532064616,0.22261071,113340.0,113330.0,0.82800333]
[1757532065205,0.22261071,113340.0,113330.0,0.65139]
[1757532065409,0.39922404,113340.0,113330.0,0.82800333]
[1757532066611,0.66139404,113340.0,113330.0,0.38745]
[1757532068213,0.66139404,113340.0,113330.0,0.02665]
[1757532068419,1.47851404,113340.0,113330.0,0.02802]
[1757532069216,1.47851404,113340.0,113330.0,0.005]
[1757532069811,1.47851404,113340.0,113330.0,0.02802]
[1757532070218,1.12528738,113340.0,113330.0,0.02802]
[1757532070515,1.47851404,113340.0,113330.0,0.005]
[1757532073223,0.66139404,113340.0,113330.0,0.005]
[1757532073517,1.47851404,113340.0,113330.0,0.005]
[1757532073923,1.12528738,113340.0,113330.0,0.02802]
[1757532074113,1.47851404,113340.0,113330.0,0.02802]
[1757532074514,0.66139404,113340.0,113330.0,0.02802]
[1757532074718,1.47851404,113340.0,113330.0,0.02802]
[1757532076327,1.47851404,113340.0,113330.0,0.005]
[1757532077424,0.66139404,113340.0,113330.0,0.005]
[1757532077624,1.47851404,113340.0,113330.0,0.005]
[1757532078427,1.3608968,113340.0,113330.0,0.005]
[1757532078828,1.3608968,113340.0,113330.0,0.02802]
[1757532079023,0.5437768,113340.0,113330.0,0.02802]
[1757532079227,1.3608968,113340.0,113330.0,0.02802]
[1757532079623,1.3608568,113340.0,113330.0,0.02802]
[1757532079824,1.12524738,113340.0,113330.0,0.02802]
[1757532080027,1.3608568,113340.0,113330.0,0.02802]